[Event "Titled Tuesday Blitz March 14 Late 2023"]
[White "Munoz, Francisco Javier"]
[Black "Leonte, Sebastian-Marian"]
[WhiteFideId "128368"]
[BlackFideId "1268767"]
[WhiteElo "2383"]
[BlackElo "2347"]
[Result "1/2-1/2"]
[Round "08"]
[TimeControl "180+2"]
[Date "2023.03.14"]
[WhiteClock "0:00:05"]
[BlackClock "0:00:15"]

1. e4 {[%clk 0:02:28]}  e5 {[%clk 0:02:58]} 2. Nc3 {[%clk 0:02:29]}  Nc6 {[%clk 0:02:52]} 3. Nf3 {[%clk 0:02:30]}  Nf6 {[%clk 0:02:50]} 4. Bb5 {[%clk 0:02:30]}  Nd4 {[%clk 0:02:50]} 5. O-O {[%clk 0:02:28]}  Nxb5 {[%clk 0:02:39]} 6. Nxb5 {[%clk 0:02:28]}  c6 {[%clk 0:02:32]} 7. Nc3 {[%clk 0:02:28]}  d6 {[%clk 0:02:25]} 8. d4 {[%clk 0:02:29]}  exd4 {[%clk 0:02:09]} 9. Qxd4 {[%clk 0:02:28]}  Be7 {[%clk 0:02:08]} 10. b3 {[%clk 0:02:22]}  Qb6 {[%clk 0:02:07]} 11. Qd3 {[%clk 0:02:18]}  Bg4 {[%clk 0:01:59]} 12. Bb2 {[%clk 0:02:18]}  O-O-O {[%clk 0:01:53]} 13. a4 {[%clk 0:02:16]}  a5 {[%clk 0:01:44]} 14. h3 {[%clk 0:02:14]}  Bh5 {[%clk 0:01:42]} 15. Nd4 {[%clk 0:02:08]}  Bg6 {[%clk 0:01:40]} 16. Nf5 {[%clk 0:01:57]}  Bxf5 {[%clk 0:01:26]} 17. exf5 {[%clk 0:01:58]}  d5 {[%clk 0:01:26]} 18. Ne2 {[%clk 0:01:55]}  Bc5 {[%clk 0:01:20]} 19. b4 {[%clk 0:01:37]}  axb4 {[%clk 0:01:15]} 20. a5 {[%clk 0:01:37]}  Qa7 {[%clk 0:01:15]} 21. a6 {[%clk 0:01:36]}  b5 {[%clk 0:01:14]} 22. Bd4 {[%clk 0:01:35]}  Ne4 {[%clk 0:01:07]} 23. Bxc5 {[%clk 0:01:32]}  Qxc5 {[%clk 0:01:08]} 24. Nd4 {[%clk 0:01:16]}  Kc7 {[%clk 0:00:58]} 25. Rfe1 {[%clk 0:01:03]}  Qc3 {[%clk 0:00:46]} 26. Qd1 {[%clk 0:00:53]}  Rhe8 {[%clk 0:00:39]} 27. Re3 {[%clk 0:00:51]}  Qc5 {[%clk 0:00:38]} 28. a7 {[%clk 0:00:46]}  Kb7 {[%clk 0:00:36]} 29. Nb3 {[%clk 0:00:39]}  Qb6 {[%clk 0:00:35]} 30. Qd4 {[%clk 0:00:25]}  Qxd4 {[%clk 0:00:33]} 31. Nxd4 {[%clk 0:00:26]}  Ra8 {[%clk 0:00:31]} 32. Rae1 {[%clk 0:00:26]}  Nd6 {[%clk 0:00:30]} 33. Re7+ {[%clk 0:00:23]}  Kb6 {[%clk 0:00:26]} 34. Rxe8 {[%clk 0:00:23]}  Nxe8 {[%clk 0:00:23]} 35. Re7 {[%clk 0:00:23]}  Nd6 {[%clk 0:00:19]} 36. Rd7 {[%clk 0:00:23]}  Nb7 {[%clk 0:00:18]} 37. Rxf7 {[%clk 0:00:22]}  Rxa7 {[%clk 0:00:18]} 38. Rxg7 {[%clk 0:00:22]}  Ra1+ {[%clk 0:00:18]} 39. Kh2 {[%clk 0:00:22]}  Rd1 {[%clk 0:00:18]} 40. Ne6 {[%clk 0:00:20]}  Nd6 {[%clk 0:00:17]} 41. f6 {[%clk 0:00:19]}  Re1 {[%clk 0:00:17]} 42. Re7 {[%clk 0:00:19]}  Nf5 {[%clk 0:00:16]} 43. Re8 {[%clk 0:00:18]}  Nd6 {[%clk 0:00:14]} 44. Re7 {[%clk 0:00:12]}  Nf5 {[%clk 0:00:14]} 45. Re8 {[%clk 0:00:09]}  Nd6 {[%clk 0:00:15]} 46. Re7 {[%clk 0:00:05]} 1/2-1/2


[Site "https://www.chess.com"]

[Event "Titled Tuesday Blitz March 14 Late 2023"]
[White "Sokolin, Leonid"]
[Black "Sreyas Payyappat"]
[WhiteFideId "2009161"]
[BlackFideId "46674969"]
[WhiteElo "2394"]
[BlackElo "2083"]
[Result "1-0"]
[Round "08"]
[TimeControl "180+2"]
[Date "2023.03.14"]
[WhiteClock "0:01:02"]
[BlackClock "0:01:04"]

1. e4 {[%clk 0:02:23]}  c6 {[%clk 0:02:58]} 2. d4 {[%clk 0:02:23]}  d5 {[%clk 0:02:59]} 3. e5 {[%clk 0:02:20]}  Bf5 {[%clk 0:02:57]} 4. g4 {[%clk 0:02:19]}  Bd7 {[%clk 0:02:51]} 5. Nc3 {[%clk 0:02:19]}  c5 {[%clk 0:02:31]} 6. dxc5 {[%clk 0:02:02]}  Bc6 {[%clk 0:02:22]} 7. Bg2 {[%clk 0:01:51]}  e6 {[%clk 0:02:21]} 8. b4 {[%clk 0:01:50]}  Na6 {[%clk 0:02:14]} 9. b5 {[%clk 0:01:43]}  Bxb5 {[%clk 0:02:13]} 10. Nxb5 {[%clk 0:01:32]}  Qa5+ {[%clk 0:02:12]} 11. Bd2 {[%clk 0:01:31]}  Qxb5 {[%clk 0:02:11]} 12. Rb1 {[%clk 0:01:31]}  Qc6 {[%clk 0:02:05]} 13. c4 {[%clk 0:01:30]}  Ne7 {[%clk 0:01:58]} 14. Ne2 {[%clk 0:01:24]}  g6 {[%clk 0:01:49]} 15. Bg5 {[%clk 0:01:13]}  O-O-O {[%clk 0:01:16]} 16. cxd5 {[%clk 0:01:08]}  exd5 {[%clk 0:01:17]} 17. O-O {[%clk 0:01:06]}  Rd7 {[%clk 0:01:15]} 18. Nd4 {[%clk 0:01:06]}  Qc7 {[%clk 0:01:10]} 19. Bf6 {[%clk 0:01:03]}  Rg8 {[%clk 0:01:10]} 20. Nb5 {[%clk 0:01:03]}  Qc6 {[%clk 0:01:04]} 21. Nxa7+ {[%clk 0:01:02]} 1-0


[Site "https://www.chess.com"]

[Event "Titled Tuesday Blitz March 14 Late 2023"]
[White "Gasparyan, David"]
[Black "Bove, Alessandro"]
[WhiteFideId "13311980"]
[BlackFideId "814121"]
[WhiteElo "2500"]
[BlackElo "2387"]
[Result "1-0"]
[Round "08"]
[TimeControl "180+2"]
[Date "2023.03.14"]
[WhiteClock "0:01:19"]
[BlackClock "0:01:42"]

1. Nf3 {[%clk 0:03:00]}  Nf6 {[%clk 0:02:59]} 2. g3 {[%clk 0:03:01]}  c6 {[%clk 0:02:59]} 3. Bg2 {[%clk 0:03:02]}  d5 {[%clk 0:02:59]} 4. O-O {[%clk 0:03:02]}  e6 {[%clk 0:03:00]} 5. d4 {[%clk 0:03:03]}  Bd6 {[%clk 0:03:00]} 6. c4 {[%clk 0:03:04]}  Ne4 {[%clk 0:03:00]} 7. Nc3 {[%clk 0:03:02]}  f5 {[%clk 0:03:00]} 8. cxd5 {[%clk 0:03:02]}  exd5 {[%clk 0:03:00]} 9. Nxe4 {[%clk 0:02:59]}  fxe4 {[%clk 0:02:59]} 10. Ne5 {[%clk 0:03:00]}  O-O {[%clk 0:02:59]} 11. f3 {[%clk 0:03:00]}  exf3 {[%clk 0:02:58]} 12. exf3 {[%clk 0:03:00]}  Nd7 {[%clk 0:02:58]} 13. f4 {[%clk 0:02:58]}  Qe7 {[%clk 0:02:58]} 14. Kh1 {[%clk 0:02:58]}  Nf6 {[%clk 0:02:58]} 15. Qb3 {[%clk 0:02:56]}  Kh8 {[%clk 0:02:53]} 16. Be3 {[%clk 0:02:55]}  Ng4 {[%clk 0:02:47]} 17. Bg1 {[%clk 0:02:53]}  Rf6 {[%clk 0:02:33]} 18. Rae1 {[%clk 0:02:53]}  Qf8 {[%clk 0:02:31]} 19. h3 {[%clk 0:02:38]}  Nh6 {[%clk 0:02:29]} 20. Bh2 {[%clk 0:02:28]}  g6 {[%clk 0:02:13]} 21. g4 {[%clk 0:02:25]}  Bxe5 {[%clk 0:01:59]} 22. fxe5 {[%clk 0:02:21]}  Rxf1+ {[%clk 0:01:56]} 23. Rxf1 {[%clk 0:02:22]}  Qe7 {[%clk 0:01:55]} 24. Qe3 {[%clk 0:01:42]}  Kg7 {[%clk 0:01:47]} 25. Bf4 {[%clk 0:01:40]}  Ng8 {[%clk 0:01:47]} 26. Bg5 {[%clk 0:01:39]}  Qe6 {[%clk 0:01:45]} 27. Bf6+ {[%clk 0:01:19]}  Nxf6 {[%clk 0:01:43]} 28. exf6+ {[%clk 0:01:19]}  Kf7 {[%clk 0:01:42]} 29. Qh6 {[%clk 0:01:19]} 1-0


[Site "https://www.chess.com"]

[Event "Titled Tuesday Blitz March 14 Late 2023"]
[White "Kohler, Aran"]
[Black "Sanchez Alvares, Kelvin Antonio"]
[WhiteFideId "1002856"]
[BlackFideId "3906680"]
[WhiteElo "2266"]
[BlackElo "2217"]
[Result "0-1"]
[Round "08"]
[TimeControl "180+2"]
[Date "2023.03.14"]
[WhiteClock "0:00:06"]
[BlackClock "0:01:14"]

1. Nf3 {[%clk 0:03:00]}  d5 {[%clk 0:02:59]} 2. d4 {[%clk 0:02:58]}  Nf6 {[%clk 0:02:59]} 3. Bg5 {[%clk 0:02:53]}  Ne4 {[%clk 0:02:58]} 4. h4 {[%clk 0:02:49]}  c6 {[%clk 0:02:56]} 5. c3 {[%clk 0:02:47]}  Bf5 {[%clk 0:02:54]} 6. Nbd2 {[%clk 0:02:44]}  Nd7 {[%clk 0:02:53]} 7. Bf4 {[%clk 0:02:40]}  Qb6 {[%clk 0:02:53]} 8. Qb3 {[%clk 0:02:39]}  e6 {[%clk 0:02:52]} 9. e3 {[%clk 0:02:32]}  Be7 {[%clk 0:02:51]} 10. Ne5 {[%clk 0:02:29]}  Nxe5 {[%clk 0:02:50]} 11. Bxe5 {[%clk 0:02:29]}  Nxd2 {[%clk 0:02:43]} 12. Qxb6 {[%clk 0:02:19]}  axb6 {[%clk 0:02:39]} 13. Kxd2 {[%clk 0:02:19]}  f6 {[%clk 0:02:40]} 14. Bg3 {[%clk 0:02:18]}  b5 {[%clk 0:02:38]} 15. Bd3 {[%clk 0:02:14]}  b4 {[%clk 0:02:28]} 16. Bxf5 {[%clk 0:02:12]}  exf5 {[%clk 0:02:28]} 17. Rhc1 {[%clk 0:02:01]}  b5 {[%clk 0:02:25]} 18. cxb4 {[%clk 0:01:55]}  Bxb4+ {[%clk 0:02:25]} 19. Kd3 {[%clk 0:01:55]}  Kd7 {[%clk 0:02:25]} 20. a3 {[%clk 0:01:54]}  Be7 {[%clk 0:02:23]} 21. b4 {[%clk 0:01:54]}  Ra4 {[%clk 0:02:20]} 22. Kc3 {[%clk 0:01:49]}  Rha8 {[%clk 0:02:19]} 23. Kb2 {[%clk 0:01:49]}  g6 {[%clk 0:02:14]} 24. f4 {[%clk 0:01:45]}  h6 {[%clk 0:02:09]} 25. Be1 {[%clk 0:01:45]}  Ke6 {[%clk 0:02:06]} 26. Bd2 {[%clk 0:01:39]}  Kd7 {[%clk 0:02:06]} 27. Kb3 {[%clk 0:01:34]}  Rg8 {[%clk 0:01:59]} 28. Rg1 {[%clk 0:01:07]}  g5 {[%clk 0:01:58]} 29. g3 {[%clk 0:00:55]}  Raa8 {[%clk 0:01:53]} 30. Raf1 {[%clk 0:00:45]}  gxh4 {[%clk 0:01:51]} 31. gxh4 {[%clk 0:00:45]}  Rg4 {[%clk 0:01:50]} 32. Rxg4 {[%clk 0:00:45]}  fxg4 {[%clk 0:01:50]} 33. Be1 {[%clk 0:00:44]}  h5 {[%clk 0:01:35]} 34. f5 {[%clk 0:00:42]}  Bd6 {[%clk 0:01:33]} 35. Rg1 {[%clk 0:00:42]}  Re8 {[%clk 0:01:32]} 36. Bd2 {[%clk 0:00:36]}  g3 {[%clk 0:01:30]} 37. a4 {[%clk 0:00:36]}  bxa4+ {[%clk 0:01:30]} 38. Kxa4 {[%clk 0:00:36]}  Re4 {[%clk 0:01:31]} 39. b5 {[%clk 0:00:27]}  cxb5+ {[%clk 0:01:31]} 40. Kxb5 {[%clk 0:00:27]}  Rxh4 {[%clk 0:01:31]} 41. Ra1 {[%clk 0:00:19]}  g2 {[%clk 0:01:30]} 42. Rg1 {[%clk 0:00:18]}  Rg4 {[%clk 0:01:28]} 43. Be1 {[%clk 0:00:18]}  h4 {[%clk 0:01:28]} 44. Bxh4 {[%clk 0:00:18]}  Rxh4 {[%clk 0:01:27]} 45. Rxg2 {[%clk 0:00:19]}  Rh3 {[%clk 0:01:23]} 46. Rg7+ {[%clk 0:00:18]}  Be7 {[%clk 0:01:23]} 47. e4 {[%clk 0:00:17]}  dxe4 {[%clk 0:01:22]} 48. Kc4 {[%clk 0:00:17]}  Rf3 {[%clk 0:01:20]} 49. d5 {[%clk 0:00:10]}  Rxf5 {[%clk 0:01:16]} 50. Kd4 {[%clk 0:00:10]}  Re5 {[%clk 0:01:16]} 51. Rg3 {[%clk 0:00:06]}  e3 {[%clk 0:01:14]} 0-1


[Site "https://www.chess.com"]

[Event "Titled Tuesday Blitz March 14 Late 2023"]
[White "ArchibaldCerveza29"]
[Black "Biriukov, Ilja"]
[BlackFideId "4113373"]
[WhiteElo "2494"]
[BlackElo "2426"]
[Result "1-0"]
[Round "08"]
[TimeControl "180+2"]
[Date "2023.03.14"]
[WhiteClock "0:00:22"]
[BlackClock "0:00:01"]

1. e4 {[%clk 0:02:59]}  c5 {[%clk 0:02:59]} 2. Nf3 {[%clk 0:02:58]}  d6 {[%clk 0:02:59]} 3. d4 {[%clk 0:02:58]}  cxd4 {[%clk 0:03:00]} 4. Nxd4 {[%clk 0:02:59]}  Nf6 {[%clk 0:02:59]} 5. Nc3 {[%clk 0:03:00]}  a6 {[%clk 0:03:00]} 6. Rg1 {[%clk 0:03:01]}  e5 {[%clk 0:02:58]} 7. Nb3 {[%clk 0:03:01]}  Be6 {[%clk 0:02:56]} 8. g4 {[%clk 0:03:02]}  h6 {[%clk 0:02:44]} 9. Qf3 {[%clk 0:02:57]}  Nc6 {[%clk 0:02:40]} 10. g5 {[%clk 0:02:57]}  hxg5 {[%clk 0:02:39]} 11. Bxg5 {[%clk 0:02:58]}  Be7 {[%clk 0:02:37]} 12. O-O-O {[%clk 0:02:58]}  Qc7 {[%clk 0:02:36]} 13. Be3 {[%clk 0:02:19]}  Rh7 {[%clk 0:02:20]} 14. Nd5 {[%clk 0:02:14]}  Bxd5 {[%clk 0:02:17]} 15. exd5 {[%clk 0:02:15]}  Nb4 {[%clk 0:02:01]} 16. c3 {[%clk 0:02:06]}  Rc8 {[%clk 0:01:49]} 17. Bd2 {[%clk 0:01:57]}  Nbxd5 {[%clk 0:01:35]} 18. Bd3 {[%clk 0:01:52]}  g6 {[%clk 0:01:35]} 19. Bg5 {[%clk 0:01:47]}  Kf8 {[%clk 0:01:11]} 20. Kb1 {[%clk 0:01:46]}  Kg7 {[%clk 0:01:10]} 21. Bf5 {[%clk 0:01:14]}  Rch8 {[%clk 0:01:08]} 22. Rxd5 {[%clk 0:01:08]}  Nxd5 {[%clk 0:01:07]} 23. Qxd5 {[%clk 0:01:09]}  Rxh2 {[%clk 0:00:48]} 24. Be3 {[%clk 0:01:00]}  Bh4 {[%clk 0:00:38]} 25. Qf3 {[%clk 0:00:45]}  Qc4 {[%clk 0:00:28]} 26. Nd2 {[%clk 0:00:39]}  Qa4 {[%clk 0:00:23]} 27. Bc2 {[%clk 0:00:38]}  Qb5 {[%clk 0:00:22]} 28. Ne4 {[%clk 0:00:35]}  Qc6 {[%clk 0:00:20]} 29. Qg4 {[%clk 0:00:32]}  Be7 {[%clk 0:00:16]} 30. Ng3 {[%clk 0:00:30]}  Rg2 {[%clk 0:00:14]} 31. Rxg2 {[%clk 0:00:29]}  Kf8 {[%clk 0:00:10]} 32. Rg1 {[%clk 0:00:28]}  Bf6 {[%clk 0:00:07]} 33. Ne4 {[%clk 0:00:27]}  Bg7 {[%clk 0:00:06]} 34. Bg5 {[%clk 0:00:25]}  b5 {[%clk 0:00:05]} 35. Bf6 {[%clk 0:00:24]}  Bxf6 {[%clk 0:00:04]} 36. Nxf6 {[%clk 0:00:25]}  Ke7 {[%clk 0:00:04]} 37. Ne4 {[%clk 0:00:23]}  Rc8 {[%clk 0:00:02]} 38. Qg5+ {[%clk 0:00:23]}  Kf8 {[%clk 0:00:01]} 39. Qf6 {[%clk 0:00:22]} 1-0


[Site "https://www.chess.com"]

[Event "Titled Tuesday Blitz March 14 Late 2023"]
[White "Salgado Lopez, Ivan"]
[Black "Womacka, Mathias"]
[WhiteFideId "2257327"]
[BlackFideId "4611390"]
[WhiteElo "2571"]
[BlackElo "2377"]
[Result "0-1"]
[Round "08"]
[TimeControl "180+2"]
[Date "2023.03.14"]
[WhiteClock "0:00:04"]
[BlackClock "0:00:26"]

1. d4 {[%clk 0:02:59]}  Nf6 {[%clk 0:02:59]} 2. Bg5 {[%clk 0:02:57]}  Ne4 {[%clk 0:02:58]} 3. Bh4 {[%clk 0:02:57]}  c5 {[%clk 0:02:58]} 4. f3 {[%clk 0:02:56]}  Nf6 {[%clk 0:02:46]} 5. d5 {[%clk 0:02:52]}  Qb6 {[%clk 0:02:45]} 6. e4 {[%clk 0:02:43]}  Qxb2 {[%clk 0:02:43]} 7. Nd2 {[%clk 0:02:41]}  d6 {[%clk 0:02:35]} 8. Rb1 {[%clk 0:02:26]}  Qxa2 {[%clk 0:02:32]} 9. Nc4 {[%clk 0:02:01]}  b5 {[%clk 0:02:07]} 10. Ra1 {[%clk 0:01:50]}  Qxa1 {[%clk 0:02:05]} 11. Qxa1 {[%clk 0:01:50]}  bxc4 {[%clk 0:02:06]} 12. Bxc4 {[%clk 0:01:47]}  Nbd7 {[%clk 0:02:06]} 13. Bb5 {[%clk 0:01:25]}  Rb8 {[%clk 0:01:57]} 14. Bc6 {[%clk 0:01:19]}  g6 {[%clk 0:01:32]} 15. Ne2 {[%clk 0:00:52]}  Bg7 {[%clk 0:01:31]} 16. c3 {[%clk 0:00:52]}  O-O {[%clk 0:01:30]} 17. O-O {[%clk 0:00:49]}  Ne5 {[%clk 0:01:25]} 18. Qxa7 {[%clk 0:00:46]}  Bd7 {[%clk 0:01:25]} 19. Bxf6 {[%clk 0:00:41]}  Bxf6 {[%clk 0:01:09]} 20. Bxd7 {[%clk 0:00:38]}  Ra8 {[%clk 0:01:06]} 21. Qc7 {[%clk 0:00:36]}  Ra2 {[%clk 0:01:01]} 22. Bb5 {[%clk 0:00:17]}  Rb2 {[%clk 0:00:46]} 23. c4 {[%clk 0:00:15]}  Rxe2 {[%clk 0:00:45]} 24. Ra1 {[%clk 0:00:15]}  Nxf3+ {[%clk 0:00:42]} 25. gxf3 {[%clk 0:00:13]}  Bxa1 {[%clk 0:00:43]} 26. Qxe7 {[%clk 0:00:12]}  Be5 {[%clk 0:00:42]} 27. Qb7 {[%clk 0:00:04]}  Rxh2 {[%clk 0:00:37]} 28. f4 {[%clk 0:00:03]}  Bxf4 {[%clk 0:00:36]} 29. e5 {[%clk 0:00:04]}  Bxe5 {[%clk 0:00:36]} 30. Bd7 {[%clk 0:00:04]}  Rc2 {[%clk 0:00:33]} 31. Bg4 {[%clk 0:00:04]}  Rxc4 {[%clk 0:00:31]} 32. Bf3 {[%clk 0:00:04]}  Rc3 {[%clk 0:00:31]} 33. Kg2 {[%clk 0:00:04]}  Kg7 {[%clk 0:00:28]} 34. Qd7 {[%clk 0:00:04]}  Rb8 {[%clk 0:00:26]} 0-1


[Site "https://www.chess.com"]

[Event "Titled Tuesday Blitz March 14 Late 2023"]
[White "Grycel, Kamil"]
[Black "ritanovikova"]
[WhiteFideId "1115499"]
[WhiteElo "2467"]
[BlackElo "2194"]
[Result "0-1"]
[Round "08"]
[TimeControl "180+2"]
[Date "2023.03.14"]
[WhiteClock "0:00:12"]
[BlackClock "0:00:53"]

1. b3 {[%clk 0:02:57]}  Nf6 {[%clk 0:02:59]} 2. Bb2 {[%clk 0:02:53]}  g6 {[%clk 0:03:00]} 3. Bxf6 {[%clk 0:02:53]}  exf6 {[%clk 0:03:01]} 4. c4 {[%clk 0:02:54]}  Bg7 {[%clk 0:03:01]} 5. Nc3 {[%clk 0:02:54]}  O-O {[%clk 0:03:01]} 6. Rc1 {[%clk 0:02:54]}  c6 {[%clk 0:03:00]} 7. Nf3 {[%clk 0:02:54]}  f5 {[%clk 0:03:00]} 8. e3 {[%clk 0:02:48]}  d5 {[%clk 0:02:59]} 9. cxd5 {[%clk 0:02:48]}  cxd5 {[%clk 0:02:59]} 10. d4 {[%clk 0:02:45]}  f4 {[%clk 0:02:54]} 11. exf4 {[%clk 0:02:44]}  Re8+ {[%clk 0:02:55]} 12. Be2 {[%clk 0:02:44]}  Bh6 {[%clk 0:02:28]} 13. O-O {[%clk 0:02:08]}  Bxf4 {[%clk 0:02:26]} 14. Ra1 {[%clk 0:01:57]}  Nc6 {[%clk 0:02:24]} 15. Re1 {[%clk 0:01:48]}  Bf5 {[%clk 0:02:16]} 16. g3 {[%clk 0:01:23]}  Bc7 {[%clk 0:02:13]} 17. Nh4 {[%clk 0:01:05]}  Be6 {[%clk 0:02:02]} 18. Qd3 {[%clk 0:00:54]}  Bb6 {[%clk 0:01:56]} 19. Nf3 {[%clk 0:00:49]}  Bg4 {[%clk 0:01:52]} 20. Rad1 {[%clk 0:00:46]}  Bf5 {[%clk 0:01:45]} 21. Qb5 {[%clk 0:00:41]}  Ba5 {[%clk 0:01:37]} 22. Rc1 {[%clk 0:00:37]}  a6 {[%clk 0:01:34]} 23. Qxd5 {[%clk 0:00:26]}  Qxd5 {[%clk 0:01:26]} 24. Nxd5 {[%clk 0:00:26]}  Bxe1 {[%clk 0:01:26]} 25. Nf6+ {[%clk 0:00:26]}  Kf8 {[%clk 0:01:21]} 26. Nxe8 {[%clk 0:00:27]}  Rxe8 {[%clk 0:01:21]} 27. Rxe1 {[%clk 0:00:26]}  Bg4 {[%clk 0:01:20]} 28. Kf1 {[%clk 0:00:19]}  Bh3+ {[%clk 0:01:14]} 29. Kg1 {[%clk 0:00:19]}  Bg4 {[%clk 0:01:13]} 30. Kf1 {[%clk 0:00:19]}  Rd8 {[%clk 0:01:07]} 31. Ne5 {[%clk 0:00:19]}  Bh3+ {[%clk 0:01:01]} 32. Kg1 {[%clk 0:00:19]}  Nxd4 {[%clk 0:01:01]} 33. Bc4 {[%clk 0:00:18]}  f6 {[%clk 0:00:59]} 34. Bf1 {[%clk 0:00:12]}  fxe5 {[%clk 0:00:53]} 0-1


[Site "https://www.chess.com"]

[Event "Titled Tuesday Blitz March 14 Late 2023"]
[White "Fishbein, Alexander"]
[Black "Rios Escobar, Adan"]
[WhiteFideId "2000377"]
[BlackFideId "3403645"]
[WhiteElo "2415"]
[BlackElo "2370"]
[Result "1-0"]
[Round "08"]
[TimeControl "180+2"]
[Date "2023.03.14"]
[WhiteClock "0:00:55"]
[BlackClock "0:00:01"]

1. e4 {[%clk 0:03:00]}  c5 {[%clk 0:02:36]} 2. Nf3 {[%clk 0:02:58]}  d6 {[%clk 0:02:35]} 3. d4 {[%clk 0:02:58]}  cxd4 {[%clk 0:02:36]} 4. Nxd4 {[%clk 0:02:58]}  Nf6 {[%clk 0:02:36]} 5. Nc3 {[%clk 0:02:58]}  a6 {[%clk 0:02:37]} 6. a4 {[%clk 0:02:56]}  e5 {[%clk 0:02:31]} 7. Nf3 {[%clk 0:02:56]}  Be7 {[%clk 0:02:24]} 8. Bg5 {[%clk 0:02:56]}  h6 {[%clk 0:02:22]} 9. Bxf6 {[%clk 0:02:55]}  Bxf6 {[%clk 0:02:23]} 10. Bc4 {[%clk 0:02:54]}  Be6 {[%clk 0:02:21]} 11. Nd5 {[%clk 0:02:53]}  Nd7 {[%clk 0:02:20]} 12. O-O {[%clk 0:02:53]}  Qc8 {[%clk 0:02:11]} 13. Bb3 {[%clk 0:02:47]}  O-O {[%clk 0:02:08]} 14. Nxf6+ {[%clk 0:02:42]}  Nxf6 {[%clk 0:02:07]} 15. Qxd6 {[%clk 0:02:42]}  Bxb3 {[%clk 0:02:05]} 16. cxb3 {[%clk 0:02:43]}  Nxe4 {[%clk 0:02:03]} 17. Qxe5 {[%clk 0:02:42]}  Re8 {[%clk 0:02:04]} 18. Qd4 {[%clk 0:02:40]}  Qf5 {[%clk 0:01:57]} 19. Rfe1 {[%clk 0:02:38]}  Rad8 {[%clk 0:01:54]} 20. Qe3 {[%clk 0:02:29]}  Nf6 {[%clk 0:01:45]} 21. Qb6 {[%clk 0:02:27]}  Qd5 {[%clk 0:01:36]} 22. h3 {[%clk 0:02:23]}  Rxe1+ {[%clk 0:01:14]} 23. Rxe1 {[%clk 0:02:22]}  Rd6 {[%clk 0:01:14]} 24. Qb4 {[%clk 0:02:17]}  a5 {[%clk 0:01:05]} 25. Qc4 {[%clk 0:02:16]}  Qxc4 {[%clk 0:00:50]} 26. bxc4 {[%clk 0:02:17]}  Rb6 {[%clk 0:00:50]} 27. Re7 {[%clk 0:01:55]}  Rxb2 {[%clk 0:00:47]} 28. Ne5 {[%clk 0:01:53]}  Re2 {[%clk 0:00:35]} 29. f4 {[%clk 0:01:52]}  Re4 {[%clk 0:00:30]} 30. Rxb7 {[%clk 0:01:46]}  Rxf4 {[%clk 0:00:30]} 31. c5 {[%clk 0:01:45]}  Rxa4 {[%clk 0:00:17]} 32. c6 {[%clk 0:01:44]}  Ra1+ {[%clk 0:00:17]} 33. Kh2 {[%clk 0:01:43]}  Nd5 {[%clk 0:00:14]} 34. Rd7 {[%clk 0:01:38]}  Nb6 {[%clk 0:00:09]} 35. Rxf7 {[%clk 0:01:20]}  Rc1 {[%clk 0:00:08]} 36. Rb7 {[%clk 0:01:20]}  Nd5 {[%clk 0:00:07]} 37. Rd7 {[%clk 0:01:19]}  Nb6 {[%clk 0:00:07]} 38. Rb7 {[%clk 0:01:17]}  Nd5 {[%clk 0:00:07]} 39. Rb5 {[%clk 0:01:17]}  Nc7 {[%clk 0:00:04]} 40. Rxa5 {[%clk 0:01:16]}  Kf8 {[%clk 0:00:03]} 41. Ra7 {[%clk 0:01:16]}  Nd5 {[%clk 0:00:02]} 42. Ng6+ {[%clk 0:01:14]}  Ke8 {[%clk 0:00:02]} 43. Ne5 {[%clk 0:01:11]}  g5 {[%clk 0:00:01]} 44. Rd7 {[%clk 0:01:09]}  Nb6 {[%clk 0:00:01]} 45. Rd6 {[%clk 0:01:08]}  Nc8 {[%clk 0:00:01]} 46. Rxh6 {[%clk 0:01:08]}  Kd8 {[%clk 0:00:01]} 47. Rh7 {[%clk 0:01:06]}  Rc5 {[%clk 0:00:01]} 48. Nf7+ {[%clk 0:01:00]}  Kc7 {[%clk 0:00:02]} 49. Nxg5+ {[%clk 0:00:59]}  Kxc6 {[%clk 0:00:02]} 50. Ne4 {[%clk 0:00:59]}  Rd5 {[%clk 0:00:02]} 51. Rh6+ {[%clk 0:00:58]}  Kd7 {[%clk 0:00:01]} 52. Nf6+ {[%clk 0:00:58]}  Ke6 {[%clk 0:00:02]} 53. Nxd5+ {[%clk 0:00:59]}  Kxd5 {[%clk 0:00:02]} 54. g4 {[%clk 0:00:58]}  Ne7 {[%clk 0:00:03]} 55. Kg3 {[%clk 0:00:58]}  Ke5 {[%clk 0:00:04]} 56. Rh5+ {[%clk 0:00:57]}  Kf6 {[%clk 0:00:04]} 57. Ra5 {[%clk 0:00:56]}  Kg6 {[%clk 0:00:04]} 58. h4 {[%clk 0:00:56]}  Kf6 {[%clk 0:00:03]} 59. h5 {[%clk 0:00:56]}  Ng8 {[%clk 0:00:02]} 60. Kh4 {[%clk 0:00:56]}  Kg7 {[%clk 0:00:02]} 61. g5 {[%clk 0:00:55]}  Kf7 {[%clk 0:00:01]} 62. Ra7+ {[%clk 0:00:55]} 1-0


[Site "https://www.chess.com"]

[Event "Titled Tuesday Blitz March 14 Late 2023"]
[White "Heinemann, Josefine"]
[Black "DeyanKostov"]
[WhiteFideId "12900460"]
[WhiteElo "2342"]
[BlackElo "2331"]
[Result "1-0"]
[Round "08"]
[TimeControl "180+2"]
[Date "2023.03.14"]
[WhiteClock "0:00:23"]
[BlackClock "0:00:11"]

1. e4 {[%clk 0:03:00]}  c5 {[%clk 0:03:00]} 2. Nf3 {[%clk 0:02:55]}  d6 {[%clk 0:02:58]} 3. d4 {[%clk 0:02:49]}  Nf6 {[%clk 0:02:58]} 4. Nc3 {[%clk 0:02:46]}  cxd4 {[%clk 0:02:58]} 5. Nxd4 {[%clk 0:02:47]}  Nc6 {[%clk 0:02:58]} 6. Bg5 {[%clk 0:02:45]}  Bd7 {[%clk 0:02:58]} 7. Qd2 {[%clk 0:02:39]}  Rc8 {[%clk 0:02:58]} 8. O-O-O {[%clk 0:02:36]}  Nxd4 {[%clk 0:02:58]} 9. Qxd4 {[%clk 0:02:35]}  Qa5 {[%clk 0:02:58]} 10. f4 {[%clk 0:02:28]}  Rxc3 {[%clk 0:02:57]} 11. Bxf6 {[%clk 0:02:17]}  gxf6 {[%clk 0:02:42]} 12. Qxc3 {[%clk 0:02:16]}  Qxc3 {[%clk 0:02:23]} 13. bxc3 {[%clk 0:02:17]}  Bg7 {[%clk 0:02:19]} 14. f5 {[%clk 0:02:05]}  Bh6+ {[%clk 0:02:18]} 15. Kb2 {[%clk 0:02:04]}  Bf4 {[%clk 0:02:18]} 16. Bc4 {[%clk 0:01:46]}  O-O {[%clk 0:02:15]} 17. Bb3 {[%clk 0:01:44]}  Rc8 {[%clk 0:02:13]} 18. a4 {[%clk 0:01:43]}  Be5 {[%clk 0:02:07]} 19. Rd3 {[%clk 0:01:40]}  Bc6 {[%clk 0:01:58]} 20. Re1 {[%clk 0:01:37]}  a5 {[%clk 0:01:47]} 21. h4 {[%clk 0:01:23]}  b5 {[%clk 0:01:46]} 22. axb5 {[%clk 0:01:22]}  Bxb5 {[%clk 0:01:47]} 23. Rh3 {[%clk 0:01:19]}  a4 {[%clk 0:01:15]} 24. Bd5 {[%clk 0:01:18]}  Bd7 {[%clk 0:01:14]} 25. g4 {[%clk 0:01:16]}  e6 {[%clk 0:01:11]} 26. fxe6 {[%clk 0:01:08]}  fxe6 {[%clk 0:01:12]} 27. Ba2 {[%clk 0:01:08]}  Rb8+ {[%clk 0:01:02]} 28. Kc1 {[%clk 0:01:06]}  Rc8 {[%clk 0:00:57]} 29. g5 {[%clk 0:00:55]}  fxg5 {[%clk 0:00:52]} 30. hxg5 {[%clk 0:00:53]}  Bf4+ {[%clk 0:00:48]} 31. Kd1 {[%clk 0:00:43]}  Bxg5 {[%clk 0:00:47]} 32. Rg1 {[%clk 0:00:43]}  h6 {[%clk 0:00:19]} 33. Rxh6 {[%clk 0:00:42]}  Kg7 {[%clk 0:00:18]} 34. Rh5 {[%clk 0:00:43]}  Kf6 {[%clk 0:00:19]} 35. Rhxg5 {[%clk 0:00:43]}  Rxc3 {[%clk 0:00:18]} 36. Kd2 {[%clk 0:00:32]}  Ra3 {[%clk 0:00:18]} 37. Bc4 {[%clk 0:00:31]}  Rh3 {[%clk 0:00:19]} 38. Rg6+ {[%clk 0:00:27]}  Ke5 {[%clk 0:00:19]} 39. R1g5+ {[%clk 0:00:27]}  Kd4 {[%clk 0:00:16]} 40. Bxe6 {[%clk 0:00:25]}  a3 {[%clk 0:00:14]} 41. Bxh3 {[%clk 0:00:24]}  a2 {[%clk 0:00:12]} 42. Ra5 {[%clk 0:00:24]}  Bxh3 {[%clk 0:00:12]} 43. Rxd6+ {[%clk 0:00:23]}  Kxe4 {[%clk 0:00:12]} 44. Rxa2 {[%clk 0:00:23]}  Ke5 {[%clk 0:00:11]} 45. Rd3 {[%clk 0:00:23]}  Bf5 {[%clk 0:00:10]} 46. Ra5+ {[%clk 0:00:23]}  Kf6 {[%clk 0:00:11]} 47. Rf3 {[%clk 0:00:23]} 1-0


[Site "https://www.chess.com"]